Workbook

Sheet 00
A1: Biometepe - Caja Chica - Balance C$: | L1: =SUMIF(CashData!L:L, "ENTRADA", CashData!K:K) - SUMIF(CashData!L:L, "SALIDA", CashData!K:K) -> 0
A6: Actividades

Sheet 01
B2: Tarea | C2: Usuario
B3: Elaborado por: | C3: Priscila Castillo Fonseca
B4: Revisado por: | C4: Emerson Urtecho
B5: Autorizado por: | C5: Keyla Esperanza Mena Romero
B8: Fecha del Reporte
B9: Fecha inicial | C9: 2023-10-01
B10: Fecha final | C10: =EOMONTH(C9,0) -> 2023-10-31
B14: Lista de Donantes
B15: ID | C15: NOMBRE DEL DONANTE
B16: 1 | C16: Brooke America Central
B17: 2 | C17: Fauna y Flora International
B18: 3 | C18: Fondos Propios Biometepe

Sheet 02
A1: COD | B1: N.º INSS | C1: CEDULA | D1: NOMBRES Y APELLIDOS | E1: CARGO | F1: SALARIO US | G1: T/C | H1: SALARIO C$
A2: 1 | B2: 13523295 | C2: 5700905760001D | D2: Carlos Roberto Barrios Alvarez | E2: Coordinador técnico | F2: 20065.56 | G2: 1 | H2: =F2*G2 -> 20065.56
A3: 2 | B3: 38417973 | C3: 5690307960000B | D3: Priscila Castillo Fonseca | E3: Asistente contable | F3: 17813.79 | G3: 1 | H3: =F3*G3 -> 17813.79
A4: 3 | B4: 36969409 | C4: 5700804880002F | D4: Ermenson Urtecho | E4: Especialista en Trafico Ilegal, vida silvestre | F4: 16000.13 | G4: 1 | H4: =F4*G4 -> 16000.13
A5: 4 | B5: 20631350 | C5: 5702703840000K | D5: Norlan Luis Zambrana Morales | E5: Especialista en especie de conservacion | F5: 16000.13 | G5: 1 | H5: =F5*G5 -> 16000.13
A6: 5 | B6: 15067892 | C6: 5691812820001T | D6: Keyla Esperanza Mena Romero | E6: Especialista en recursos naturales en gobernanza | F6: 30537.93 | G6: 1 | H6: =F6*G6 -> 30537.93
A7: 6 | B7: 39582241 | C7: 5611102900004J | D7: Ervin Joel Aviles Romero | E7: Técnico agroecológico | F7: 10701.54 | G7: 1 | H7: =F7*G7 -> 10701.54
A8: 7 | B8: 39582234 | C8: 5700802950000C | D8: Cristhiam Selena Hernández Salazar | E8: Técnico agroecológico | F8: 16000.13 | G8: 1 | H8: =F8*G8 -> 16000.13
A9: 8 | B9: 40644141 | C9: 5700712880002F | D9: Levis Antonio Hernández | E9: Técnico de Biodiversidad | F9: 14445.78 | G9: 1 | H9: =F9*G9 -> 14445.78
A10: 9 | B10: 40644158 | C10: 5612805991000Y | D10: Anry Rossmery Rodríguez Valdivia | E10: Técnico en Educación y Comunicación | F10: 12646.02 | G10: 1 | H10: =F10*G10 -> 12646.02
A11: 10 | B11: 29797437 | C11: 5700509900002V | D11: Adonis Antonio López Lorío | E11: Técnico agroecológico | F11: 10701.54 | G11: 1 | H11: =F11*G11 -> 10701.54
A12: 11 | B12: 41003518 | C12: 5702705830002F | D12: Marlon José González | E12: Técnico agroecológico | F12: 10701.54 | G12: 1 | H12: =F12*G12 -> 10701.54
A13: 12 | B13: 41013148 | C13: 5700702950002C | D13: Numa Martínez Arguello | E13: Técnico agroecológico | F13: 10701.54 | G13: 1 | H13: =F13*G13 -> 10701.54
A14: 13 | B14: 41417746 | C14: 5700810011000C | D14: Jorvin Urías Aguirre Barrios | E14: Técnico agroecológico | F14: 9531.14 | G14: 1 | H14: =F14*G14 -> 9531.14
A15: 14 | B15: 41417874 | C15: 5691411001000K | D15: Derex Xavier Muñoz Rodríguez | E15: Técnico agroecológico | F15: 9531.14 | G15: 1 | H15: =F15*G15 -> 9531.14
A16: 15 | B16: 43526965 | C16: 5612302041000K | D16: Sarah Michelle Mena Saballos | E16: Técnico agroecológico | F16: 10701.54 | G16: 1 | H16: =F16*G16 -> 10701.54

Sheet 03
A1: ID_RUBRO | B1: NOMBRE_RUBRO
A2: 1 | B2: RECURSO HUMANO
A3: 2 | B3: ACTIVIDADES DE PROYECTOS
A4: 3 | B4: EQUIPAMIENTO
A5: 4 | B5: COSTOS DE OPERACIONES
A6: 5 | B6: GASTOS MENORES DE CAJA CHICA
A97: Lista de línea de gastos
A99: ID_LINEA | B99: ID_RUBRO | C99: DESCRIPCION
A100: 11 | B100: 1 | C100: Remuneración
A101: 12 | B101: 1 | C101: Seguros
A102: 13 | B102: 1 | C102: Capacitación
A103: 21 | B103: 2 | C103: Patrullaje y protección de nidos
A104: 22 | B104: 2 | C104: Talleres/Foros comunitarios
A105: 23 | B105: 2 | C105: Capacitación a técnicos
A106: 31 | B106: 3 | C106: Equipo para escalamiento
A107: 32 | B107: 3 | C107: Equipo de monitoreo
A108: 33 | B108: 3 | C108: Kit de primeros auxilios
A109: 34 | B109: 3 | C109: Equipo informático
A110: 41 | B110: 4 | C110: Combustible y mantenimiento de vehículos
A111: 42 | B111: 4 | C111: Viáticos de alimentación y transporte
A112: 43 | B112: 4 | C112: Gastos de oficina
A197: configuración de rubros por fondos
A199: FONDO | B199: RUBRO
A200: PLNA-KHALILI | B200: RECURSO HUMANO
A201: PLNA-KHALILI | B201: EQUIPAMIENTO
A202: PLNA-FE | B202: RECURSO HUMANO
A203: PLNA-FE | B203: ACTIVIDADES DE PROYECTOS
A204: PLNA-FE | B204: COSTOS DE OPERACIONES
A205: BRK-EQUINO | B205: RECURSO HUMANO
A206: BRK-EQUINO | B206: ACTIVIDADES DE PROYECTOS
A207: BRK-EQUINO | B207: COSTOS DE OPERACIONES
A208: BRK-EQUINO | B208: EQUIPAMIENTO

Sheet 04
B1: ID | C1: ID_DONANTE | D1: DESTINO_FONDO | E1: NOMBRE_CORTO
B2: 1 | C2: 1 | D2: Bienestar Equino en RB Isla de Ometepe | E2: BRK-EQUINO
B3: 2 | C3: 2 | D3: Proyecto Lora Nuca Amarilla - Khalili | E3: PLNA-KHALILI
B4: 3 | C4: 2 | D4: Proyecto Lora Nuca Amarilla - Fondo de Emergencia | E4: PLNA-FE
B5: 4 | C5: 2 | D5: Proyecto Lora Nuca Amarilla - Loro Parque | E5: PLNA-LOR
B6: 5 | C6: 3 | D6: Caja Chica | E6: CAJA CHICA
B7: 6 | C7: 2 | D7: PROYECTO LORA NUCA AMARILLA | E7: DARWIN
B8: 7 | C8: 3 | D8: FONDOS PROPIOS | E8: BIOMETEPE
B9: 8 | C9: 2 | D9: Proyecto Lora Nuca Amarilla FFI-LUF | E9: LUF

Sheet 05
A1: ID_LINEA | B1: ID_RUBRO | C1: DESCRIPCION
A2: 11 | B2: 1 | C2: Remuneración
A3: 12 | B3: 1 | C3: Seguros
A4: 13 | B4: 1 | C4: Capacitación
A5: 21 | B5: 2 | C5: Patrullaje y protección de nidos
A6: 22 | B6: 2 | C6: Talleres/Foros comunitarios
A7: 23 | B7: 2 | C7: Capacitación a técnicos
A8: 31 | B8: 3 | C8: Equipo para escalamiento
A9: 32 | B9: 3 | C9: Equipo de monitoreo
A10: 33 | B10: 3 | C10: Kit de primeros auxilios
A11: 34 | B11: 3 | C11: Equipo informático
A12: 41 | B12: 4 | C12: Combustible y mantenimiento de vehículos
A13: 42 | B13: 4 | C13: Viáticos de alimentación y transporte
A14: 43 | B14: 4 | C14: Gastos de oficina
A15: 51 | B15: 5 | C15: Viáticos

Sheet 06
A1: ID_RUBRO | B1: ID_FONDO
A2: 1 | B2: 1
A3: 1 | B3: 2
A4: 1 | B4: 3
A5: 2 | B5: 1
A6: 2 | B6: 2
A7: 2 | B7: 3
A8: 3 | B8: 1
A9: 3 | B9: 2
A10: 3 | B10: 3
A11: 4 | B11: 1
A12: 4 | B12: 3
A13: 5 | B13: 5

Sheet 07
A1: ID_LINEA | B1: NOMBRE DE LA LINEA
A2: 11 | B2: Remuneración
A3: 12 | B3: Seguros
A4: 13 | B4: Capacitación
A5: 21 | B5: Patrullaje y protección de nidos
A6: 22 | B6: Talleres/Foros comunitarios
A7: 23 | B7: Capacitación a técnicos
A8: 31 | B8: Equipo para escalamiento
A9: 32 | B9: Equipo de monitoreo
A10: 33 | B10: Kit de primeros auxilios
A11: 34 | B11: Equipo informático
A12: 41 | B12: Combustible y mantenimiento de vehículos
A13: 42 | B13: Viáticos de alimentación y transporte
A14: 43 | B14: Gastos de oficina
A15: 51 | B15: Viáticos

Sheet servicios
A1: TIPO | B1: DESCRIPCION | C1: CONFIG
A2: 11 | B2: Servicio de alimentación - Brooke | C2: Si
A3: 12 | B3: Servicio de alimentación - FFI-PLNA-FE | C3: Si
A4: 13 | B4: Servicio de alimentacion- FFI-LOR | C4: Si
A5: 14 | B5: Servicios de alimentacion -FFI- DARWIN | C5: Si
A6: 21 | B6: Compra de bienes y servicios - Brooke | C6: Si
A7: 22 | B7: Servicio de alimentación - FFI-KHALILI | C7: Si
A8: 23 | B8: Compra de bienes y servicios - FFI-FE | C8: Si
A9: 24 | B9: Compra de bienes y servicios - FFI -LOR | C9: Si
A10: 25 | B10: Compra de bienes y servicios -FFI- DARWIN | C10: Si
A11: 26 | B11: Compra de Bienes y Servicios -FFI-KHALILI | C11: Si
A12: 31 | B12: Pago salarios - Brooke | C12: Si
A13: 32 | B13: Pago salarios - FFI | C13: Si
A14: 33 | B14: Liquidacion de Aguinaldo | C14: Si
A15: 34 | B15: Transferencias a cuentas propias | C15: Si
A16: 41 | B16: Reembolso de Caja Chica | C16: Si
A17: 42 | B17: Anticipo para compras | C17: Si
A18: 43 | B18: Gastos de patrullaje-FFI-FE | C18: Si
A19: 44 | B19: Anticipo para viáticos | C19: Si
A20: 45 | B20: Gastos de patrullaje-FFI-LOR | C20: Si
A21: 46 | B21: Censo de Poblacion -FFI-DARWIN | C21: Si
A22: 47 | B22: Reembolso de viaticos- FFI- DARWIN | C22: Si
A23: 51 | B23: Pago de cotizaciones al INSS | C23: Si
A24: 52 | B24: Pago de cotizaciones al INATEC | C24: Si
A25: 53 | B25: Pago de impuestos a la DGI | C25: Si
A26: 61 | B26: Servicios Consultoría - FFI-PLNA-FE | C26: Si
A27: 62 | B27: Servicios Consultoria FFI- KHALILI | C27: Si
A28: 63 | B28: Servicios de Consultoria FFI - LOR | C28: Si
A29: 64 | B29: Servicios de Consultoria- Brooke | C29: Si
A30: 65 | B30: Servicios consultoria FFI-DARWIN | C30: Si
A31: 66 | B31: Servicios consultoria FF-LUF | C31: Si

Sheet proveedores
A1: ID | B1: NOMBRE | C1: SERVICIO | D1: DIRECCION
A2: 570-090576-0001D | B2: Carlos Roberto Barrios Alvarez | C2: Pago de salarios | D2: Altagracia. De la alcaldía 1 cuadra al sur 1/2 cuadra al oeste
A3: 569-030796-0000B | B3: Priscila Castillo Fonseca | C3: Pago de salarios | D3: Moyogalpa. Del colegio Israel 1/2 cuadra al este.
A4: 561-121086-0006M | B4: Dannibeth Pilar Aguirre Lorio | C4: Servicio de alimentacion | D4: Comarca Las Pilas, Iglesia Catolica 25mts al Norte.
A5: 569-260465-00001B | B5: Fabio Martin Hernandez | C5: Pago de contado a proveedor | D5: Del Juzgado Local 1c al Norte Moyogalpa, Isla de Ometepe.
A6: 569-080488-0000L | B6: Wilfredo Vargas Aleman | C6: Pago de contado a proveedor | D6: De la Portuaria 150 mts al Sur, Moyogalpa Isla de Ometepe, Rivas.
A7: 569-1106800001A | B7: Juan Carlos Mena R | C7: Pago de contado a proveedor | D7: De la Iglesia Catolica 1/2 c al Norte Moyogalpa, Isla de Ometepe, Rivas.
A8: 201-171271-0003D | B8: Manuel Castillo Monge | C8: Pago de contado a proveedor | D8: Alcaldia Municipal, 1c al Sur, 25 vrs al Este, Altagracia, Isla de Ometepe, Rivas.
A9: 569-070259-0000D | B9: Candida Rosa Calderon Rivas | C9: Servicio de Alimentacion | D9: Cmca, Moyogalpa Magfor 2c al Sur, Isla de Ometepe, Rivas
A10: 570-230173-0003B | B10: Alma Castillo Mairena | C10: Servicio de Alimentacion | D10: Escuela Madroñal 150 mts al Sur, Altagracia, Isla de Ometepe, Rivas.
A11: 570-010287-0000F | B11: Dinora Sequeira Novoa | C11: Servicio de Alimentacion | D11: La Palma Iglesia Evangelica 120 vrs Norte, Altagracia, Isla de Ometepe, Rivas.
A12: 570-091168-0000K | B12: Nubia Angelica Martinez | C12: Servicio de Alimentacion | D12: Urb. Alexandra Castro Casa E-26, Altagracia, Isla de Ometepe, Rivas.
A13: 570-311270-0001E | B13: Cristina Correa Ortiz | C13: Servicio de Alimentacion | D13: Costado Oeste Parque de Altagracia, Isla de Ometepe, Rivas.
A14: 570-250687-0000J | B14: Pedro Ramon Rivera Barrios. | C14: Pago de contado a proveedor | D14: Municipio Altagracia, Isla de Ometepe, Rivas.
A15: 561-251069-0004F | B15: Edgar Quintanilla Cuadra. | C15: Pago de contado a proveedor | D15: Costado Oeste de Dissur, Altagracia.
A16: 570-200464-0001L | B16: Maria Marcelina Castillo | C16: Servicio de Alimentacion | D16: Cmca, Balgue, Centro de salud 200vrs Este, 50 vrs Norte.
A17: 570-280982-0000M | B17: Ceneida Elizavec Zacarias Castillo | C17: Servicio de Alimentacion | D17: Cmca Balgue Centro de Salud 200 vrs Este 50vrs Norte.
A18: INSS | B18: Instituto Nicaraguense de Seguridad Social | C18: Cotizaciones Inss | D18: Moyogalpa, Isla de Ometepe, Rivas.
A19: INATEC | B19: INATEC | C19: Pago de cotizaciones al INATEC | D19: Moyogalpa, Isla de Ometepe, Rivas
A20: 569-210881-0000D | B20: Marybel Muñoz Morgan | C20: Servicio de alimentacion | D20: San Lazaro, Iglesia Catolica 100 vrs oeste, Moyogalpa, Isla de Ometepe
A21: 361-160896-1001G | B21: Jareth Alextia Alonzo Estrada | C21: Servicio Alimentacion. | D21: San Lazaro, Moyogalpa, Isla de Ometepe.
A22: 570-020192-0004D | B22: Jamileth del Socorro Hernandez Garcia. | C22: Servicio de Alimentacion | D22: De la Iglesia Catolica La Palma 150 mts al Sur.Altagracia, Isla de Ometepe.
A23: 561-201196-1005S | B23: Junior Antonio Hernandez Hernandez | C23: Servicio de Alimentacion | D23: Cmca La Palma, Iglesia Catolica 200 vrs al sur.
A24: 561-211200-1000S | B24: Lesther Antonio Obregon Vargas. | C24: Servicio de Alimentacion | D24: Cmca Corozal, Iglesia Catolica 300vrs Norte.
A25: 569-190298-1000E | B25: Kimberlin Tatiana Ponce Gomez | C25: Servicio de Alimentacion | D25: Cmca La Flor, Centro de Salud 200 mts Sur.
A26: 570-201178-0002G | B26: Douglas Antonio Obregon Monge. | C26: Servicio de Alimentacion | D26: Cmca El Corozal Iglesia Catolica 100 mts Este
A27: 570-080488-0002F | B27: Ermenson Urtecho | C27: Especialista en trafigo Ilegal de vida silvestre | D27: Cmca Merida, Iglesia Catolica 200 mts Oeste.
A28: 570-270384-0000K | B28: Norlan Luis Zambrana Morales | C28: Pago de Salario | D28: Cmca, Merida, frente a la Escuela primaria Merida.
A29: 569-181282-0001T | B29: Keyla Esperanza Mena Romero | C29: Pago de Salario | D29: Frente al porton del Instituto Juan Roberto Smith, Moyogalpa, Isla de Ometepe, Rivas
A30: 570-270583-0002F | B30: Marlon Jose Gonzalez | C30: Pago. | D30: Balgue, Instituto Jaime Marza 150 mts Este.
A31: 570-071288-0002F | B31: Levis Antonio Hernandez | C31: Pago. | D31: Balgue, Casa Comunal 30 vrs Norte.
A32: 569-260465-0001B | B32: Favio Martin Hernandez | C32: Pago de contado a proveedor | D32: Del Juzgado Local 1c al Norte Moyogalpa, Isla de Ometepe.
A33: 570-290780-0003Q | B33: Wilmer Antonio Valle Castillo | C33: Servicios de Alimentacion | D33: Comarca Balgue, Iglesia Catolica 50 mts Oeste.
A34: 569-110195-0000K | B34: Coralia Valle Castillo | C34: Servicios Alimentacion | D34: Balgue, Iglesia Evangelica 100 mts Oeste, Municipio Altagracia
A35: 570-271095-0000V | B35: Selena del Carmen Rivera Martinez | C35: Servicios de Alimentacion | D35: Merida, Iglesia Catolica 100 mts al Sur.Municipio de Altagracia
A36: 569-040688-0000Q | B36: Jairo Avilez Castaño | C36: Servicio de contado a Proveedor | D36: De la Iglesia Catolica 1c al lago, Moyogalpa, Isla de Ometepe.
A37: 001-281088-0089M | B37: Norma Isabel Guillen Guzman | C37: Compra de bienes y servicios | D37: Contiguo a Enitel, Altagracia, Isla de Ometepe.
A38: DGI | B38: Dirección General de Ingresos | C38: Impuestos | D38: Moyogalpa
A39: 569-180752-0000X | B39: Norma Cruz Urbina | C39: Servicios de Alimentacion. | D39: Frente a la Estacion de Policia Moyogalpa, Isla de Ometepe.
A40: 601-090896-1000P | B40: Carla Yaritza Moreno Lira | C40: Servicios de alimentacion | D40: Comunidad de Balgue, Entrada a Totoco 150 mts al lago.
A41: 570-200966-0002J | B41: Marta Elena Lorio Aguirre | C41: Servicios de alimentacion | D41: Comarca las Pilas, Monumento 100 vrs Norte.
A42: 570-090460-0002K | B42: Maria Argentina Alvarado | C42: Servicios de Alimentacion | D42: Comunidad Merida, Centro Salud 100 mtrs Norte
A43: 569-161194-0000R | B43: Maria Zulema Somarriba Aleman | C43: Servicios de Alimentacion. | D43: Del centro recreativo 1c al norte, Moyogalpa, Isla de Ometepe
A44: 570-151084-0000E | B44: Fatima del Socorro Hernandez Murillo. | C44: Servicios de alimentacion. | D44: Comunidad Corozal, contiguo Campo Deportivo.
A45: 561-271098-1000K | B45: Yalitza Deyanira Alvarez Gonzalez. | C45: Servicios de alimentacion. | D45: Comunidad, La Flor Centro de Salud 200 vrs Norte.
A46: 566-241286-0004L | B46: Mireyling Barrios Flores. | C46: Compra de bienes y servicios. | D46: Costado este del Parque de Moyogalpa. Isla de Ometepe.
A47: 570-050990-0002V | B47: Adonis Antonio Lopez Lorio | C47: Consultoria | D47: Comunidad Merida, de la Escuela primaria 150 mts al Norte.
A48: 001-220386-0053A | B48: Scarleth Reyes Gomez | C48: Compra de bienes y sirvicios | D48: Monseñor Lezcano, del Semaforo de la Seiba 2c, este 1 1/2c, Sur Managua.
A49: 041-041271-0003S | B49: Alejandro Cesar Martinez Garcia. | C49: Consultoria | D49: De Instituto Juan Roberto Smith 200 mts al Norte. Moyogalpa Isla de Ometepe.
A50: 569-011077-0000U | B50: Julio Cesar Aviles Arteta | C50: Servicios de alimentacion | D50: De la Iglesia Catolica 1c al Norte Moyogalpa, Isla de Ometepe, Rivas.
A51: 561-110290-0004J | B51: Ervin Joel Aviles Romero | C51: Consultoria | D51: De la Iglesia Catolica, 1/2 c al Norte, Moyogalpa, Isla de Ometepe.
A52: 570-040881-0000J | B52: Marycelis Mairena Zambrana | C52: Servicios de alimentacion | D52: El Madroñal, Escuela 19 de Julio 50 vrs Sur.
A53: 570-200574-0000M | B53: Jairo Antonio Sandino Aguirre | C53: Servicios de Consultoria | D53: Cmca Los Ramos, contiguo Iglesia Catolica.
A54: 570-201197-1000N | B54: Jessica Lisbeth Solis Martinez | C54: Servicios de alimentacion | D54: Cmca, Merida Hotel Caballito de Mar 200 mts, Oeste.
A55: 246-201194-0000H | B55: Henna Nubia Rivera Pinel | C55: Servicios de alimentacion | D55: Escuela el Madroñal 100mts al Sur
A56: 569-180159-0001W | B56: Leonor Ampie Hernandes | C56: Servicios de alimentacion | D56: Cmca La Flor, centro Salud 150 vrs Este.
A57: 570-111052-0000U | B57: Bayardo Obregon Murillo | C57: Servicios alimentacion | D57: Cmca El Corozal, casa comunal 800 mts Oeste.
A58: 570-210884-0003H | B58: Indira Argentina Arana Boza | C58: Servicios de alimentacion | D58: Cmca, Merida centro de salud 200 mts Este.
A59: 043-180687-0000D | B59: Alan Antonio Martinez Castillo | C59: Servicios de alimentacion | D59: Cmca, Balgue Iglesia catolica 100mts Norte
A60: 570-080295-0000C | B60: Cristhiam Selena Hernandez Salazar | C60: Servicio de Consultoria | D60: Cmca Las Pilas, Iglesia catolica 50 mts sur.
A61: Casa Pellas S.A | B61: Casa Pellas S.A | C61: Compra de bienes y servicios | D61: Managua, Nicaragua
A62: 570-170790-0001H | B62: Jose Alberto Diaz Castillo | C62: Servicios de alimentacion | D62: Balgue, Iglesia Catolica 50 vrs Norte.
A63: 569-140784-0000Q | B63: Erika del Socorro Novoa Flores. | C63: Servicios de alimentacion. | D63: Urb. La Esperanza, casa N.26
A64: 569-100557-0000Q | B64: Nora del Carmen Lopez Ordoñez | C64: Servicios de Alimentacion | D64: De la Iglesia catolica Moyogalpa, 80mts al Norte, Moyogalpa Isla de Ometepe.
A65: 570-220383-0001F | B65: Yamira Albarado Salazar | C65: Servicios de alimentacion | D65: Cmca, Las Pilas, Iglesia catolica 100 mts al este. Altagracia.
A66: 569-030598-1000P | B66: Tamara de los Angeles Cruz Ortiz | C66: Servicios de alimentacion | D66: Cmca, La Flor, El Calvario 200vrs Oeste. Municipio de Moyogalpa
A67: 570-070985-0003D | B67: Ivett Maria Castillo Hernandez | C67: Servicios de alimentacion | D67: Cmca Balgue Centro Salud 1 1/2 Km al este
A68: 569-270701-1000G | B68: Nora del Carmen Cruz Aleman | C68: Servicios de alimentacion | D68: Cmca La Flor, San Pedro Cementerio 200 mts Sur.
A69: 570-031084-0001E | B69: Maria Tereza Cruz Lorio | C69: Servicios de alimentacion | D69: Cmca Merida Costado este del centro de salud.
A70: 569-010682-0000R | B70: Yesly Mora | C70: Consultor | D70: Cmca, San Marcos terminal de carretera 300 vrs Norte.
A71: 281-021066-0000X | B71: Fernando Antonio Larios Borge | C71: servicios informaticos | D71: Bo. Monseñor Lezcano, de donde fue cine Leon 2 c Oeste 1/2c al sur.
A72: 569-031263-0000N | B72: Oscar Antonio Vargas Barrera | C72: Compra de Bienes y Servivios | D72: De la portuaria 150 mts. al sur, Moyogalpa, Isla de Ometepe, Rivas.
A73: RUC:J0410000379097 | B73: Cooperativa de Agroturismo Rural Biometepe R.L. Proyecto Brooke. | C73: Agroturismo Rural | D73: Contiguo a oficinas de Claro, planta alta.
A74: . | B74: GMG COMERCIAL NICARAGUA S.A | C74: BIENES Y SERVICIOS | D74: DEPARTAMENTO DE RIVAS
A75: 570-030587-1000R | B75: Roberto Antonio Martinez Ponce | C75: Servicios de Alimentacion | D75: Cmca. Merida hacienda Merida 30 mts Sur.
A76: 570-310881-0001T | B76: Jose Bismark Bosa | C76: Servicios de Alimentacion. | D76: CMCA Merida, Centro Salud 200 Mts Norte.
A77: 569-150491-0002M | B77: Marcela Rufina Centeno Martinez | C77: Servicios de alimentacion | D77: Juzgado Local 1 1/2 c al Oeste.
A78: 570-311270-0001E | B78: Maria Cristina Correa Ortiz | C78: Servicio de Alimentacion | D78: Costado Oeste Parque de Altagracia, Isla de Ometepe, Rivas.
A79: 5612412580003A | B79: Manuel Salvador Morales Alvarez | C79: Compra de bienes y servicios | D79: De la Alcaldia 50 vrs al Oeste, Rivas, Nic.
A80: 570-210164-0000S | B80: Raquel del Carmen Zambrana | C80: Servicios de alimentacion | D80: CMCA, El Corozal, terminal de buses 80 vrs Norte.
A81: 569-140199-1000G | B81: Albertina Bravo Baldelomar | C81: Servicios de Alimentacion | D81: Cmca La Flor, Tanque Inaa 1c Oeste 1c Norte.
A82: 570-201177-0002M | B82: Pablo Antonio Alvarez Gonzales | C82: compra de bienes y servicios | D82: Del Cementerio de Altagracia 75 vrs al Norte, Isla de Ometepe.
A83: 570-220988-0003U | B83: Daysis del Socorro Ruiz | C83: Compra de bienes y servicios. | D83: frente a la Entrada Hotel Finca Venecia.
A84: 569-190777-0000P | B84: Ivania del Carmen Gonzalez | C84: Servicios de alimentacion | D84: Cmca. La Flor Centro de Salud 200 vrs Norte.
A85: 365-020574-0002K | B85: Isabel Cristina Luna Sandoval | C85: Servicios de alimentacion | D85: Cmca La Palma, Escuela 50 vrs este.
A86: 570-310752-0000T | B86: Ygnacia De Jesus Sanchez Oporta | C86: Servicios alimentacion | D86: Cmca. Santa Teresa Finca Boston
A87: 561-240587-0004X | B87: Alonso jose Salinas Rodriguez | C87: compra de bienes y servicios | D87: Costado este del mercado municipal de donde fueron los semaforos 1/2 cuadra al norte, Rivas, Nic.

Sheet PlanContable
A1: CODIGO | B1: DESCRIPCION_DE_LA_CUENTA | C1: TIPO CUENTA
A2: 10000000 | B2: ACTIVOS | C2: CLASE
A3: 11000000 | B3: DISPONIBILIDADES | C3: GRUPO
A4: 11100000 | B4: EFECTIVO EN CAJA | C4: CUENTA
A5: 11101000 | B5: CAJA CHICA | C5: SUBCUENTA
A6: 11101100 | B6: CAJA CHICA MN | C6: MONEDA
A7: 11101101 | B7: CAJA CHICA MN | C7: ANALITICA
A8: 11108000 | B8: CAJA GENERAL | C8: SUBCUENTA
A9: 11108100 | B9: CAJA GENERAL MN | C9: MONEDA
A10: 11108101 | B10: CAJA GENERAL MN | C10: INACTIVA
A11: 11200000 | B11: DEPOSITOS EN COOPERATIVAS, BANCOS Y OTRAS INSTITUCIONES | C11: CUENTA
A12: 11201000 | B12: DEPOSITOS EN CUENTAS CORRIENTES | C12: SUBCUENTA
A13: 11201100 | B13: CUENTAS A LA VISTA MN/SMV | C13: MONEDA
A14: 11201101 | B14: LAFISE – CTA. NIO 106007653 | C14: ANALITICA
A15: 11201102 | B15: LAFISE – CTA. NIO 106009799 | C15: ANALITICA
A16: 15000000 | B16: CUENTAS POR COBRAR | C16: GRUPO
A17: 15700000 | B17: CUENTAS POR COBRAR AL PERSONAL | C17: CUENTA
A18: 15701000 | B18: CUENTAS POR COBRAR AL PERSONAL | C18: SUBCUENTA
A19: 15701100 | B19: CUENTAS POR COBRAR AL PERSONAL MN | C19: MONEDA
A20: 15701101 | B20: ANTICIPO PARA COMPRAS Y GASTOS | C20: ANALITICA
A21: 15701104 | B21: ANTICIPO PARA GASTOS DE PATRULLAJE | C21: ANALITICA
A22: 15701105 | B22: ANTICIPO PARA VIATICOS | C22: INACTIVA
A23: 17000000 | B23: BIENES DE USO | C23: GRUPO
A24: 17100000 | B24: BIENES DE USO | C24: CUENTA
A25: 17104000 | B25: EQUIPO DE COMPUTO | C25: SUBCUENTA
A26: 17104100 | B26: EQUIPO DE COMPUTO MN | C26: MONEDA
A27: 17104101 | B27: EQUIPO DE COMPUTO ADMINISTRATIVO | C27: ANALITICA
A28: 17105000 | B28: VEHÍCULOS | C28: SUBCUENTA
A29: 17105100 | B29: VEHÍCULOS MN | C29: MONEDA
A30: 17105101 | B30: VEHÍCULOS DE USO ADMINISTRATIVO | C30: INACTIVA
A31: 17105103 | B31: VEHÍCULOS PARA ACTIVIDADES PRODUCTIVAS | C31: ANALITICA
A32: 17105104 | B32: VEHÍCULOS PARA PRESTACIÓN DE SERVICIOS | C32: INACTIVA
A33: 19000000 | B33: OTROS ACTIVOS | C33: GRUPO
A34: 19100000 | B34: GASTOS PAGADOS POR ANTICIPADOS | C34: CUENTA
A35: 19103000 | B35: IMPUESTOS PAGADOS POR ANTICIPADO | C35: SUBCUENTA
A36: 19103100 | B36: IMPUESTOS PAGADOS POR ANTICIPADO MN | C36: MONEDA
A37: 19103101 | B37: IVA ACREDITABLE | C37: ANALITICA
A38: 19200000 | B38: CARGOS DIFERIDOS | C38: CUENTA
A39: 19203000 | B39: SOFTWARE | C39: SUBCUENTA
A40: 19203100 | B40: SOFTWARE M.N. | C40: MONEDA
A41: 19203102 | B41: SISTEMA DE CONTABILIDAD | C41: ANALITICA
A42: 19300000 | B42: OTROS ACTIVOS DIVERSOS | C42: CUENTA
A43: 19302000 | B43: PAPELERIA Y UTILES DE OFICINA | C43: SUBCUENTA
A44: 19302100 | B44: PAPELERIA Y UTILES DE OFICINA MN | C44: MONEDA
A45: 19302101 | B45: PAPELERIA Y UTILES DE OFICINA MN | C45: INACTIVA
A46: 19309000 | B46: OTROS ACTIVOS DIVERSOS | C46: SUBCUENTA
A47: 19309100 | B47: OTROS ACTIVOS DIVERSOS MN | C47: MONEDA
A48: 19309101 | B48: EQUIPO DE MONITOREO | C48: ANALITICA
A49: 19309102 | B49: EQUIPO Y ACCESORIOS PARA ESCALADA | C49: ANALITICA
A50: 19400000 | B50: OPERACIONES PENDIENTES DE IMPUTACION | C50: CUENTA
A51: 19401000 | B51: FALTANTES DE CAJA | C51: SUBCUENTA
A52: 19401100 | B52: FALTANTES DE CAJA MN | C52: MONEDA
A53: 19401101 | B53: FALTANTES DE CAJA MN | C53: ANALITICA
A54: 20000000 | B54: PASIVO | C54: CLASE
A55: 25000000 | B55: OTRAS CUENTAS POR PAGAR | C55: GRUPO
A56: 25100000 | B56: GASTOS ACUMULADOS POR PAGAR | C56: CUENTA
A57: 25101000 | B57: SUELDOS Y SALARIOS POR PAGAR | C57: SUBCUENTA
A58: 25101100 | B58: SUELDOS Y SALARIOS POR PAGAR MN | C58: MONEDA
A59: 25101101 | B59: SALARIOS POR PAGAR MN | C59: INACTIVA
A60: 25103000 | B60: VACACIONES POR PAGAR | C60: SUBCUENTA
A61: 25103100 | B61: VACACIONES POR PAGAR MN | C61: MONEDA
A62: 25103101 | B62: VACACIONES POR PAGAR MN | C62: INACTIVA
A63: 25104000 | B63: DECIMO TERCER MES POR PAGAR | C63: SUBCUENTA
A64: 25104100 | B64: DECIMO TERCER MES POR PAGAR MN | C64: MONEDA
A65: 25104101 | B65: DECIMO TERCER MES POR PAGAR MN | C65: ANALITICA
A66: 25105000 | B66: APORTE INSS EMPLEADOR | C66: SUBCUENTA
A67: 25105100 | B67: APORTE INSS EMPLEADOR MN | C67: MONEDA
A68: 25105101 | B68: APORTE INSS EMPLEADOR MN | C68: ANALITICA
A69: 25106000 | B69: APORTE INATEC EMPLEADOR | C69: SUBCUENTA
A70: 25106100 | B70: APORTE INATEC EMPLEADOR MN | C70: MONEDA
A71: 25106101 | B71: APORTE INATEC EMPLEADOR MN | C71: ANALITICA
A72: 25200000 | B72: RETENCIONES ACUMULADAS POR PAGAR | C72: CUENTA
A73: 25201000 | B73: IMPUESTOS SOBRE LA RENTA EMPLEADOS | C73: SUBCUENTA
A74: 25201100 | B74: IMPUESTOS SOBRE LA RENTA EMPLEADOS MN | C74: MONEDA
A75: 25201101 | B75: IMPUESTOS SOBRE LA RENTA EMPLEADOS MN | C75: ANALITICA
A76: 25202000 | B76: IMPUESTOS SOBRE LA RENTA POR SERVICIOS | C76: SUBCUENTA
A77: 25202100 | B77: IMPUESTOS SOBRE LA RENTA POR SERVICIOS MN | C77: MONEDA
A78: 25202101 | B78: IR COMPRA DE BIENES Y PRESTACION DE SERVICIOS 2% | C78: ANALITICA
A79: 25202102 | B79: IR POR SERVICIOS PROFESIONALES O TECNICO SUPERIOR 10% | C79: ANALITICA
A80: 25202103 | B80: RETENCIONES 2% POR TRASLADAR | C80: ANALITICA
A81: 25204000 | B81: APORTE LABORAL INSS | C81: SUBCUENTA
A82: 25204100 | B82: APORTE LABORAL INSS MN | C82: MONEDA
A83: 25204101 | B83: APORTE LABORAL INSS MN | C83: ANALITICA
A84: 25400000 | B84: SERVICIOS POR PAGAR | C84: CUENTA
A85: 25409000 | B85: SERVICIOS DE CONSULTORIA | C85: SUBCUENTA
A86: 25409100 | B86: SERVICIOS DE CONSULTORIA MN | C86: MONEDA
A87: 25409101 | B87: SERVICIOS DE CONSULTORIA POR PAGAR | C87: ANALITICA
A88: 25900000 | B88: CUENTAS POR PAGAR DIVERSAS | C88: CUENTA
A89: 25901000 | B89: CUENTAS POR PAGAR DIVERSAS | C89: SUBCUENTA
A90: 25901100 | B90: CUENTAS POR PAGAR DIVERSAS MN/SMV | C90: MONEDA
A91: 25901101 | B91: PROVEEDORES DE BIENES Y SERVICIOS | C91: ANALITICA
A92: 26000000 | B92: PROVISIONES PARA OBLIGACIONES | C92: GRUPO
A93: 26100000 | B93: PROVISIONES PARA INDEMNIZACIONES LABORALES | C93: CUENTA
A94: 26101000 | B94: PROVISIONES P/INDEMNIZACIONES LABORALES SEGÚN LEGISLACION VIGENTE | C94: SUBCUENTA
A95: 26101100 | B95: PROVISIONES P/INDEMNIZACIONES LABORALES SEGÚN LEGISLACION VIGENTE MN | C95: MONEDA
A96: 26101101 | B96: PROVISIONES P/INDEMNIZACIONES LABORALES SEGÚN LEGISLACION VIGENTE MN | C96: ANALITICA
A97: 30000000 | B97: PATRIMONIO | C97: CLASE
A98: 31000000 | B98: CAPITAL SOCIAL | C98: GRUPO
A99: 31100000 | B99: APORTACIONES PAGADAS | C99: CUENTA
A100: 31101000 | B100: APORTACIONES PAGADAS | C100: SUBCUENTA
A101: 31101100 | B101: APORTACIONES PAGADAS MN | C101: MONEDA
A102: 31101101 | B102: CERTIFICADOS DE APORTACION MN | C102: ANALITICA
A103: 31101102 | B103: APORTACIONES ORDINARIAS MN | C103: ANALITICA
A104: 31101103 | B104: APORTACIONES EXTRAORDINARIAS MN | C104: ANALITICA
A105: 31200000 | B105: CAPITAL DONADO | C105: CUENTA
A106: 31201000 | B106: CAPITAL DONADO | C106: SUBCUENTA
A107: 31201100 | B107: CAPITAL DONADO MN | C107: MONEDA
A108: 31201102 | B108: DONACIONES DEL PROYECTO PLNA | C108: ANALITICA
A109: 32000000 | B109: APORTES PATRIMONIALES NO CAPITALIZADOS | C109: GRUPO
A110: 32200000 | B110: DONACIONES NO CAPITALIZABLES | C110: CUENTA
A111: 32201000 | B111: DONACIONES NO CAPITALIZABLES | C111: SUBCUENTA
A112: 32201100 | B112: DONACIONES NO CAPITALIZABLES MN | C112: MONEDA
A113: 32201101 | B113: DONACIONES NO CAPITALIZABLES MN | C113: ANALITICA
A114: 32201102 | B114: DONACIONES COMPLEMENTARIAS PARA PROYECTOS COMUNITARIOS | C114: ANALITICA
A115: 32201103 | B115: OTRAS DONACIONES PARA PROGRAMAS EVENTUALES | C115: ANALITICA
A116: 35000000 | B116: RESULTADOS ACUMULADOS DE PERIODOS ANTERIORES | C116: GRUPO
A117: 35100000 | B117: RESULTADOS ACUMULADOS DE PERIODOS ANTERIORES | C117: CUENTA
A118: 35101000 | B118: RESULTADOS ACUMULADOS DE PERIODOS ANTERIORES | C118: SUBCUENTA
A119: 35101100 | B119: RESULTADOS ACUMULADOS DE PERIODOS ANTERIORES MN | C119: MONEDA
A120: 35101101 | B120: RESULTADOS ACUMULADOS DE PERIODOS ANTERIORES MN | C120: ANALITICA
A121: 36000000 | B121: RESULTADO DEL PERIODO | C121: GRUPO
A122: 36100000 | B122: RESULTADO DEL PERIODO | C122: CUENTA
A123: 36103000 | B123: RESULTADO DEL PERIODO POR VENTA DE SERVICIOS | C123: SUBCUENTA
A124: 36103100 | B124: RESULTADO DEL PERIODO POR VENTA DE SERVICIOS MN | C124: MONEDA
A125: 36103101 | B125: RESULTADO DEL PERIODO | C125: ANALITICA
A126: 40000000 | B126: INGRESOS | C126: CLASE
A127: 43000000 | B127: INGRESOS POR VENTAS DE SERVICIOS | C127: INACTIVA
A128: 43500000 | B128: FACTURACION POR VENTA DE OTROS SERVICIOS | C128: INACTIVA
A129: 43501000 | B129: FACTURACION POR VENTA DE OTROS SERVICIOS | C129: INACTIVA
A130: 43501100 | B130: FACTURACION POR VENTA DE OTROS SERVICIOS MN | C130: INACTIVA
A131: 43501101 | B131: FACTURACION POR VENTA DE PAQUETES | C131: INACTIVA
A132: 46000000 | B132: INGRESOS OPERATIVOS DIVERSOS | C132: GRUPO
A133: 46400000 | B133: INGRESOS EXTRAORDINARIOS | C133: CUENTA
A134: 46499000 | B134: OTROS INGRESOS EXTRAORDINARIOS | C134: SUBCUENTA
A135: 46499100 | B135: OTROS INGRESOS EXTRAORDINARIOS MN | C135: MONEDA
A136: 46499101 | B136: DONACIONES PROYECTO BIENESTAR EQUINO | C136: ANALITICA
A137: 46499102 | B137: DONACIONES PROTECCION LORA NUCA AMARILLA | C137: ANALITICA
A138: 46499103 | B138: APORTACIONES ORDINARIAS PARA GASTOS OPERATIVOS | C138: ANALITICA
A139: 46499104 | B139: DONACIONES PARA ACTIVIDADES DIVERSAS DE PROYECTOS | C139: ANALITICA
A140: 50000000 | B140: COSTOS Y GASTOS | C140: CLASE
A141: 52000000 | B141: GASTOS FINANCIEROS | C141: GRUPO
A142: 52400000 | B142: CARGOS FINANCIEROS POR CUENTAS POR PAGAR | C142: CUENTA
A143: 52401000 | B143: CARGOS FINANCIEROS POR CUENTAS POR PAGAR | C143: SUBCUENTA
A144: 52401200 | B144: CARGOS FINANCIEROS POR CUENTAS POR PAGAR M.N./CMV | C144: MONEDA
A145: 52401201 | B145: CARGOS FINANCIEROS POR CUENTAS POR PAGAR M.N./CMV | C145: ANALITICA
A146: 53000000 | B146: COSTOS Y GASTOS POR VENTA DE SERVICIOS | C146: INACTIVA
A147: 53500000 | B147: COSTOS Y GASTOS POR VENTA DE OTROS SERVICIOS | C147: INACTIVA
A148: 53501000 | B148: COSTOS POR VENTA DE OTROS SERVICIOS | C148: INACTIVA
A149: 53501100 | B149: COSTOS POR VENTA DE OTROS SERVICIOS MN | C149: INACTIVA
A150: 53501101 | B150: COSTOS POR VENTA DE PAQUETES | C150: INACTIVA
A151: 54000000 | B151: GASTOS POR AJUSTES MONETARIOS | C151: GRUPO
A152: 54400000 | B152: AJUSTES MONETARIOS POR OTROS PASIVOS | C152: CUENTA
A153: 54401000 | B153: DIFERENCIA CAMBIARIA POR OTROS PASIVOS | C153: SUBCUENTA
A154: 54401100 | B154: DIFERENCIA CAMBIARIA POR OTROS PASIVOS M.N. | C154: MONEDA
A155: 54401101 | B155: MANTENIMIENTO DE VALOR POR OTROS PASIVOS | C155: ANALITICA
A156: 57000000 | B156: GASTOS DE ADMINISTRACION | C156: GRUPO
A157: 57100000 | B157: SUELDOS Y BENEFICIOS AL PERSONAL | C157: CUENTA
A158: 57102000 | B158: SUELDOS DE PERSONAL CONTRATADO | C158: SUBCUENTA
A159: 57102100 | B159: SUELDOS DE PERSONAL CONTRATADO MN | C159: MONEDA
A160: 57102101 | B160: SUELDOS DE PERSONAL CONTRATADO MN | C160: ANALITICA
A161: 57107000 | B161: VIATICOS | C161: SUBCUENTA
A162: 57107100 | B162: VIATICOS MN | C162: MONEDA
A163: 57107101 | B163: VIATICO DE ALIMENTACIÓN Y TRANSPORTE | C163: ANALITICA
A164: 57108000 | B164: AGUINALDOS | C164: SUBCUENTA
A165: 57108100 | B165: AGUINALDOS MN | C165: MONEDA
A166: 57108101 | B166: AGUINALDOS MN | C166: ANALITICA
A167: 57110000 | B167: INDEMNIZACIONES | C167: SUBCUENTA
A168: 57110100 | B168: INDEMNIZACIONES MN | C168: MONEDA
A169: 57110101 | B169: INDEMNIZACIONES MN | C169: ANALITICA
A170: 57115000 | B170: SEGURO SOCIAL APORTE PATRONAL | C170: SUBCUENTA
A171: 57115100 | B171: SEGURO SOCIAL APORTE PATRONAL MN | C171: MONEDA
A172: 57115101 | B172: SEGURO SOCIAL APORTE PATRONAL MN | C172: ANALITICA
A173: 57116000 | B173: APORTES A INATEC | C173: SUBCUENTA
A174: 57116100 | B174: APORTES A INATEC MN | C174: MONEDA
A175: 57116101 | B175: APORTES A INATEC MN | C175: ANALITICA
A176: 57117000 | B176: CAFETERIA | C176: SUBCUENTA
A177: 57117100 | B177: CAFETERIA MN | C177: MONEDA
A178: 57117101 | B178: CAFETERIA MN | C178: ANALITICA
A179: 57119000 | B179: UNIFORMES | C179: SUBCUENTA
A180: 57119100 | B180: UNIFORMES M.N. | C180: MONEDA
A181: 57119101 | B181: UNIFORMES M.N. | C181: ANALITICA
A182: 57121000 | B182: CAPACITACIÓN | C182: SUBCUENTA
A183: 57121100 | B183: CAPACITACIÓN MN | C183: MONEDA
A184: 57121101 | B184: TALLERES, SEMINARIOS, CURSOS, ETC. | C184: INACTIVA
A185: 57121109 | B185: SUMINISTROS USADOS EN CAPACITACIONES | C185: ANALITICA
A186: 57199000 | B186: OTROS GASTOS DE PERSONAL | C186: SUBCUENTA
A187: 57199100 | B187: OTROS GASTOS DE PERSONAL M.N. | C187: MONEDA
A188: 57199101 | B188: EQUIPO Y ACCESORIOS DE HYS DEL PERSONAL | C188: ANALITICA
A189: 57200000 | B189: GASTO PARA SERVICIOS EXTERNOS | C189: CUENTA
A190: 57205000 | B190: OTRAS CONSULTORIAS EXTERNAS | C190: SUBCUENTA
A191: 57205100 | B191: OTRAS CONSULTORIAS EXTERNAS MN | C191: MONEDA
A192: 57205101 | B192: CONSULTORIAS DE PROYECTOS | C192: ANALITICA
A193: 57209000 | B193: SERVICIOS DE PROYECTOS | C193: SUBCUENTA
A194: 57209100 | B194: SERVICIOS DE PROYECTOS MN | C194: MONEDA
A195: 57209101 | B195: SERVICIOS DE ALIMENTACION EN TALLERES/FOROS | C195: ANALITICA
A196: 57209102 | B196: SERVICIOS DE AUDIO | C196: ANALITICA
A197: 57300000 | B197: GASTOS DE TRANSPORTE Y COMUNICACIONES | C197: CUENTA
A198: 57301000 | B198: PASAJES Y TRASLADOS | C198: SUBCUENTA
A199: 57301100 | B199: PASAJES Y TRASLADOS M.N. | C199: MONEDA
A200: 57301101 | B200: PASAJES Y TRASLADOS M.N. | C200: ANALITICA
... 75 more rows

Sheet partidas
A1: ID | B1: DESCRIPCION DEL SERVICIO | C1: RETENCION | D1: ALICUOTA | E1: DONANTE | F1: FONDO | G1: CUENTA | H1: PARTIDA | I1: DISTRIBUCION | J1: TIPO_DISTRIB | K1: VALORES_FIJOS | L1: ACTUALIZACION
A2: 12 | B2: Servicio de alimentación - FFI | C2: Si | D2: 0.02 | E2: Fauna y Flora International | F2: PLNA-FE | G2: 57209101 | H2: DEBITO | I2: 1 | J2: PORCENTUAL | L2: NO
A3: 12 | B3: Servicio de alimentación - FFI | C3: Si | D3: 0.02 | E3: Fauna y Flora International | F3: PLNA-FE | G3: 25202101 | H3: CREDITO | I3: 0.02 | J3: PORCENTUAL | L3: NO
A4: 12 | B4: Servicio de alimentación - FFI | C4: Si | D4: 0.02 | E4: Fauna y Flora International | F4: PLNA-FE | G4: 11201101 | H4: CREDITO | I4: 0.98 | J4: PORCENTUAL | L4: NO
A5: 31 | B5: Pago salarios - Brooke | C5: No | D5: 0 | E5: Brooke América Central | F5: BRK-EQUINO | G5: 57102101 | H5: DEBITO | I5: 1 | J5: PORCENTUAL | L5: NO
A6: 31 | B6: Pago salarios - Brooke | C6: No | D6: 0 | E6: Brooke América Central | F6: BRK-EQUINO | G6: 11201101 | H6: CREDITO | I6: 1 | J6: PORCENTUAL | L6: NO
A7: 53 | B7: Pago de impuestos a la DGI | C7: No | D7: 0 | G7: 25201101 | H7: DEBITO | J7: VALORES FIJOS | K7: 4630.75 | L7: SI
A8: 53 | B8: Pago de impuestos a la DGI | C8: No | D8: 0 | G8: 25202101 | H8: DEBITO | J8: VALORES FIJOS | K8: 2065 | L8: SI
A9: 53 | B9: Pago de impuestos a la DGI | C9: No | D9: 0 | G9: 25202102 | H9: DEBITO | J9: VALORES FIJOS | K9: 1187.5 | L9: SI
A10: 53 | B10: Pago de impuestos a la DGI | C10: No | D10: 0 | G10: 11201101 | H10: CREDITO | J10: VALORES FIJOS | K10: 7883.25 | L10: SI
A11: 61 | B11: Servicios Consultoría - FFI-PLNA-FE | C11: Si | D11: 0.1 | E11: Fauna y Flora International | F11: PLNA-FE | G11: 57205101 | H11: DEBITO | I11: 1 | J11: PORCENTUAL | L11: NO
A12: 61 | B12: Servicios Consultoría - FFI-PLNA-FE | C12: Si | D12: 0.1 | E12: Fauna y Flora International | F12: PLNA-FE | G12: 25202102 | H12: CREDITO | I12: 0.1 | J12: PORCENTUAL | L12: NO
A13: 61 | B13: Servicios Consultoría - FFI-PLNA-FE | C13: Si | D13: 0.1 | E13: Fauna y Flora International | F13: PLNA-FE | G13: 11201101 | H13: CREDITO | I13: 0.9 | J13: PORCENTUAL | L13: NO
A14: 45 | B14: Gastos de patrullaje-FFI-LOR | C14: No | D14: 0 | E14: Fauna y Flora International | F14: PLNA-LOR | G14: 58398102 | H14: DEBITO | I14: 1 | J14: PORCENTUAL | L14: NO
A15: 45 | B15: Gastos de patrullaje-FFI-LOR | C15: No | D15: 0 | E15: Fauna y Flora International | F15: PLNA-LOR | G15: 11201101 | H15: CREDITO | I15: 1 | J15: PORCENTUAL | L15: NO
A16: 24 | B16: Compra de bienes y servicios - FFI -LOR | C16: Si | D16: 0.02 | E16: Fauna y Flora International | F16: PLNA-LOR | G16: 32201102 | H16: DEBITO | I16: 1 | J16: PORCENTUAL | L16: NO
A17: 24 | B17: Compra de bienes y servicios - FFI -LOR | C17: Si | D17: 0.02 | E17: Fauna y Flora International | F17: PLNA-LOR | G17: 11201101 | H17: CREDITO | I17: 0.98 | J17: PORCENTUAL | L17: NO
A18: 24 | B18: Compra de bienes y servicios - FFI -LOR | C18: Si | D18: 0.02 | E18: Fauna y Flora International | F18: PLNA-LOR | G18: 25202101 | H18: CREDITO | I18: 0.02 | J18: PORCENTUAL | L18: NO
A19: 62 | B19: Servicios Consultoria FFI- KHALILI | C19: Si | D19: 0.1 | E19: Fauna y Flora International | F19: PLNA-KHALILI | G19: 57205101 | H19: DEBITO | I19: 1 | J19: PORCENTUAL | L19: NO
A20: 62 | B20: Servicios Consultoria FFI- KHALILI | C20: Si | D20: 0.1 | E20: Fauna y Flora International | F20: PLNA-KHALILI | G20: 25202102 | H20: CREDITO | I20: 0.1 | J20: PORCENTUAL | L20: NO
A21: 62 | B21: Servicios Consultoria FFI- KHALILI | C21: Si | D21: 0.1 | E21: Fauna y Flora International | F21: PLNA-KHALILI | G21: 11201101 | H21: CREDITO | I21: 0.9 | J21: PORCENTUAL | L21: NO
A22: 63 | B22: Servicios de Consultoria FFI - LOR | C22: Si | D22: 0.1 | E22: Fauna y Flora International | F22: PLNA-LOR | G22: 57205101 | H22: DEBITO | I22: 1 | J22: PORCENTUAL | L22: NO
A23: 63 | B23: Servicios de Consultoria FFI - LOR | C23: Si | D23: 0.1 | E23: Fauna y Flora International | F23: PLNA-LOR | G23: 25202102 | H23: CREDITO | I23: 0.1 | J23: PORCENTUAL | L23: NO
A24: 63 | B24: Servicios de Consultoria FFI - LOR | C24: Si | D24: 0.1 | E24: Fauna y Flora International | F24: PLNA-LOR | G24: 11201101 | H24: CREDITO | I24: 0.9 | J24: PORCENTUAL | L24: NO
A25: 64 | B25: Servicios de Consultoria- Brooke | C25: Si | D25: 0.1 | E25: Brooke América Central | F25: BRK-EQUINO | G25: 57205101 | H25: DEBITO | I25: 1 | J25: PORCENTUAL | L25: NO
A26: 64 | B26: Servicios de Consultoria- Brooke | C26: Si | D26: 0.1 | E26: Brooke América Central | F26: BRK-EQUINO | G26: 25202102 | H26: CREDITO | I26: 0.1 | J26: PORCENTUAL | L26: NO
A27: 64 | B27: Servicios de Consultoria- Brooke | C27: Si | D27: 0.1 | E27: Brooke América Central | F27: BRK-EQUINO | G27: 11201101 | H27: CREDITO | I27: 0.9 | J27: PORCENTUAL | L27: NO
A28: 23 | B28: Compra de bienes y servicios - FFI-FE | C28: Si | D28: 0.02 | E28: Fauna y Flora International | F28: PLNA-FE | G28: 57119101 | H28: DEBITO | I28: 1 | J28: PORCENTUAL | L28: NO
A29: 23 | B29: Compra de bienes y servicios - FFI-FE | C29: Si | D29: 0.02 | E29: Fauna y Flora International | F29: PLNA-FE | G29: 25202101 | H29: CREDITO | I29: 0.02 | J29: PORCENTUAL | L29: NO
A30: 23 | B30: Compra de bienes y servicios - FFI-FE | C30: Si | D30: 0.02 | E30: Fauna y Flora International | F30: PLNA-FE | G30: 11201101 | H30: CREDITO | I30: 0.98 | J30: PORCENTUAL | L30: NO
A31: 22 | B31: Servicio de alimentación - FFI-KHALILI | C31: Si | D31: 0.02 | E31: Fauna y Flora International | F31: PLNA-KHALILI | G31: 57209101 | H31: DEBITO | I31: 1 | J31: PORCENTUAL | L31: NO
A32: 22 | B32: Servicio de alimentación - FFI-KHALILI | C32: Si | D32: 0.02 | E32: Fauna y Flora International | F32: PLNA-KHALILI | G32: 25202101 | H32: CREDITO | I32: 0.02 | J32: PORCENTUAL | L32: NO
A33: 22 | B33: Servicio de alimentación - FFI-KHALILI | C33: Si | D33: 0.02 | E33: Fauna y Flora International | F33: PLNA-KHALILI | G33: 11201101 | H33: CREDITO | I33: 0.98 | J33: PORCENTUAL | L33: NO
A34: 13 | B34: Servicio de alimentacion- FFI-LOR | C34: Si | D34: 0.02 | E34: Fauna y Flora International | F34: PLNA-LOR | G34: 57209101 | H34: DEBITO | I34: 1 | J34: PORCENTUAL | L34: NO
A35: 13 | B35: Servicio de alimentacion- FFI-LOR | C35: Si | D35: 0.02 | E35: Fauna y Flora International | F35: PLNA-LOR | G35: 25202101 | H35: CREDITO | I35: 0.02 | J35: PORCENTUAL | L35: NO
A36: 13 | B36: Servicio de alimentacion- FFI-LOR | C36: Si | D36: 0.02 | E36: Fauna y Flora International | F36: PLNA-LOR | G36: 11201101 | H36: CREDITO | I36: 0.98 | J36: PORCENTUAL | L36: NO
A37: 46 | B37: Censo de Poblacion -FFI-DARWIN | C37: No | D37: 0 | E37: Fauna y Flora International | F37: DARWIN | G37: 58398102 | H37: DEBITO | J37: VALORES FIJOS | K37: 18900 | L37: SI
A38: 46 | B38: Censo de Poblacion -FFI-DARWIN | C38: No | D38: 0 | E38: Fauna y Flora International | F38: DARWIN | G38: 11201101 | H38: CREDITO | J38: VALORES FIJOS | K38: 18900 | L38: SI
A39: 14 | B39: Servicios de alimentacion -FFI- DARWIN | C39: Si | D39: 0.02 | E39: Fauna y Flora International | F39: DARWIN | G39: 57209101 | H39: DEBITO | I39: 1 | J39: PORCENTUAL | L39: NO
A40: 14 | B40: Servicios de alimentacion -FFI- DARWIN | C40: Si | D40: 0.02 | E40: Fauna y Flora International | F40: DARWIN | G40: 25202101 | H40: CREDITO | I40: 0.02 | J40: PORCENTUAL | L40: NO
A41: 14 | B41: Servicios de alimentacion -FFI- DARWIN | C41: Si | D41: 0.02 | E41: Fauna y Flora International | F41: DARWIN | G41: 11201101 | H41: CREDITO | I41: 0.98 | J41: PORCENTUAL | L41: NO
A42: 33 | B42: Liquidacion de Aguinaldo | C42: No | D42: 0 | E42: Fondos Propios Biometepe | F42: BIOMETEPE | G42: 25104101 | H42: DEBITO | J42: VALORES FIJOS | K42: 20065.56 | L42: SI
A43: 33 | B43: Liquidacion de Aguinaldo | C43: No | D43: 0 | E43: Fondos Propios Biometepe | F43: BIOMETEPE | G43: 11201101 | H43: CREDITO | J43: VALORES FIJOS | K43: 20065.56 | L43: SI
A44: 44 | B44: Anticipo para viáticos | C44: No | D44: 0 | E44: Fauna y Flora International | F44: PLNA-LOR | G44: 15701105 | H44: DEBITO | I44: 1 | J44: PORCENTUAL | L44: NO
A45: 44 | B45: Anticipo para viáticos | C45: No | D45: 0 | E45: Fauna y Flora International | F45: PLNA-LOR | G45: 11201100 | H45: CREDITO | I45: 1 | J45: PORCENTUAL | L45: NO
A46: 26 | B46: Compra de Bienes y Servicios -FFI-KHALILI | C46: Si | D46: 0.02 | E46: Fauna y Flora International | F46: PLNA-KHALILI | G46: 58307103 | H46: DEBITO | I46: 1 | J46: PORCENTUAL | L46: NO
A47: 26 | B47: Compra de Bienes y Servicios -FFI-KHALILI | C47: Si | D47: 0.02 | E47: Fauna y Flora International | F47: PLNA-KHALILI | G47: 25202101 | H47: CREDITO | I47: 0.02 | J47: PORCENTUAL | L47: NO
A48: 26 | B48: Compra de Bienes y Servicios -FFI-KHALILI | C48: Si | D48: 0.02 | E48: Fauna y Flora International | F48: PLNA-KHALILI | G48: 11201101 | H48: CREDITO | I48: 0.98 | J48: PORCENTUAL | L48: NO
A49: 43 | B49: Gastos de patrullaje-FFI-FE | C49: No | D49: 0 | E49: Fauna y Flora International | F49: DARWIN | G49: 15701104 | H49: DEBITO | I49: 1 | J49: PORCENTUAL | L49: NO
A50: 43 | B50: Gastos de patrullaje-FFI-FE | C50: No | D50: 0 | E50: Fauna y Flora International | F50: DARWIN | G50: 11201101 | H50: CREDITO | I50: 1 | J50: PORCENTUAL | L50: NO
A51: 41 | B51: Reembolso de Caja Chica | C51: No | D51: 0 | E51: Fondos Propios Biometepe | F51: CAJA CHICA | G51: 11101101 | H51: DEBITO | I51: 1 | J51: PORCENTUAL | L51: NO
A52: 41 | B52: Reembolso de Caja Chica | C52: No | D52: 0 | E52: Fondos Propios Biometepe | F52: CAJA CHICA | G52: 11201102 | H52: CREDITO | I52: 1 | J52: PORCENTUAL | L52: NO
A53: 47 | B53: Reembolso de viaticos- FFI- DARWIN | C53: No | D53: 0 | E53: Fauna y Flora International | F53: DARWIN | G53: 57107101 | H53: DEBITO | I53: 1 | J53: PORCENTUAL | L53: NO
A54: 47 | B54: Reembolso de viaticos- FFI- DARWIN | C54: No | D54: 0 | E54: Fauna y Flora International | F54: DARWIN | G54: 11201101 | H54: CREDITO | I54: 1 | J54: PORCENTUAL | L54: NO
A55: 32 | B55: Pago salarios - FFI | C55: No | D55: 0 | E55: Fauna y Flora International | F55: PLNA-FE | G55: 57102101 | H55: DEBITO | I55: 1 | J55: PORCENTUAL | L55: NO
A56: 32 | B56: Pago salarios - FFI | C56: No | D56: 0 | E56: Fauna y Flora International | F56: PLNA-FE | G56: 11201101 | H56: CREDITO | I56: 1 | J56: PORCENTUAL | L56: NO
A57: 11 | B57: Servicio de alimentación - Brooke | C57: Si | D57: 0.02 | E57: Brooke América Central | F57: BRK-EQUINO | G57: 57209101 | H57: DEBITO | I57: 1 | J57: PORCENTUAL | L57: NO
A58: 11 | B58: Servicio de alimentación - Brooke | C58: Si | D58: 0.02 | E58: Brooke América Central | F58: BRK-EQUINO | G58: 25202101 | H58: CREDITO | I58: 0.02 | J58: PORCENTUAL | L58: NO
A59: 11 | B59: Servicio de alimentación - Brooke | C59: Si | D59: 0.02 | E59: Brooke América Central | F59: BRK-EQUINO | G59: 11201102 | H59: CREDITO | I59: 0.98 | J59: PORCENTUAL | L59: NO
A60: 34 | B60: Transferencias a cuentas propias | C60: No | D60: 0 | E60: Brooke America Central | F60: BRK-EQUINO | G60: 11201102 | H60: DEBITO | I60: 1 | J60: PORCENTUAL | L60: NO
A61: 34 | B61: Transferencias a cuentas propias | C61: No | D61: 0 | E61: Brooke America Central | F61: BRK-EQUINO | G61: 11101101 | H61: CREDITO | I61: 1 | J61: PORCENTUAL | L61: NO
A62: 25 | B62: Compra de bienes y servicios -FFI- DARWIN | C62: No | D62: 0 | E62: Fauna y Flora International | F62: DARWIN | G62: 25901101 | H62: DEBITO | J62: VALORES FIJOS | K62: 13573.56 | L62: SI
A63: 25 | B63: Compra de bienes y servicios -FFI- DARWIN | C63: No | D63: 0 | E63: Fauna y Flora International | F63: DARWIN | G63: 11201101 | H63: CREDITO | J63: VALORES FIJOS | K63: 13573.56 | L63: SI
A64: 52 | B64: Pago de cotizaciones al INATEC | C64: No | D64: 0 | G64: 25106101 | H64: DEBITO | I64: 1 | J64: PORCENTUAL | L64: NO
A65: 52 | B65: Pago de cotizaciones al INATEC | C65: No | D65: 0 | G65: 11201102 | H65: CREDITO | I65: 1 | J65: PORCENTUAL | L65: NO
A66: 51 | B66: Pago de cotizaciones al INSS | C66: No | D66: 0 | G66: 25105101 | H66: DEBITO | J66: VALORES FIJOS | K66: 8141.1 | L66: SI
A67: 51 | B67: Pago de cotizaciones al INSS | C67: No | D67: 0 | G67: 25204101 | H67: DEBITO | J67: VALORES FIJOS | K67: 2650.59 | L67: SI
A68: 51 | B68: Pago de cotizaciones al INSS | C68: No | D68: 0 | G68: 11201102 | H68: CREDITO | J68: VALORES FIJOS | K68: 10791.69 | L68: SI
A69: 21 | B69: Compra de bienes y servicios - Brooke | C69: Si | D69: 0.02 | E69: Brooke América Central | F69: BRK-EQUINO | G69: 58307101 | H69: DEBITO | I69: 1 | J69: PORCENTUAL | L69: NO
A70: 21 | B70: Compra de bienes y servicios - Brooke | C70: Si | D70: 0.02 | E70: Brooke América Central | F70: BRK-EQUINO | G70: 25202101 | H70: CREDITO | I70: 0.02 | J70: PORCENTUAL | L70: NO
A71: 21 | B71: Compra de bienes y servicios - Brooke | C71: Si | D71: 0.02 | E71: Brooke América Central | F71: BRK-EQUINO | G71: 11201102 | H71: CREDITO | I71: 0.98 | J71: PORCENTUAL | L71: NO
A72: 42 | B72: Anticipo para compras | C72: No | D72: 0 | E72: Fauna y Flora International | F72: DARWIN | G72: 15701101 | H72: DEBITO | I72: 1 | J72: PORCENTUAL | L72: NO
A73: 42 | B73: Anticipo para compras | C73: No | D73: 0 | E73: Fauna y Flora International | F73: DARWIN | G73: 11201101 | H73: CREDITO | I73: 1 | J73: PORCENTUAL | L73: NO
A74: 65 | B74: Servicios consultoria FFI-DARWIN | C74: Si | D74: 0.1 | E74: Fauna y Flora International | F74: LUF | G74: 57205101 | H74: DEBITO | I74: 1 | J74: PORCENTUAL | L74: NO
A75: 65 | B75: Servicios consultoria FFI-DARWIN | C75: Si | D75: 0.1 | E75: Fauna y Flora International | F75: LUF | G75: 25202102 | H75: CREDITO | I75: 0.1 | J75: PORCENTUAL | L75: NO
A76: 65 | B76: Servicios consultoria FFI-DARWIN | C76: Si | D76: 0.1 | E76: Fauna y Flora International | F76: LUF | G76: 11201101 | H76: CREDITO | I76: 0.9 | J76: PORCENTUAL | L76: NO
A77: 66 | B77: Servicios consultoria FF-LUF | C77: Si | D77: 0.1 | E77: Fauna y Flora International | F77: LUF | G77: 57205101 | H77: DEBITO | I77: 1 | J77: PORCENTUAL | L77: NO
A78: 66 | B78: Servicios consultoria FF-LUF | C78: Si | D78: 0.1 | E78: Fauna y Flora International | F78: LUF | G78: 25202102 | H78: CREDITO | I78: 0.1 | J78: PORCENTUAL | L78: NO
A79: 66 | B79: Servicios consultoria FF-LUF | C79: Si | D79: 0.1 | E79: Fauna y Flora International | F79: LUF | G79: 11201101 | H79: CREDITO | I79: 0.9 | J79: PORCENTUAL | L79: NO

Sheet CE
A1: Procesar Comprobante de Egresos
L2: =IFERROR(VLOOKUP(INDEX(Tabla1[#data], MATCH($I$13, servicios, 0), 1), partidas!A:B, 2, FALSE()), "Partida no configurada") -> Partida no configurada
A3: Tipo de egreso: | C3: Pago
A5: ID Beneficiario: | C5: 569-030796-0000B
A7: Nombre: | C7: =IF(C5<>"", VLOOKUP(C5, proveedores!A:B, 2, FALSE()), "") -> Priscila Castillo Fonseca | L7: =IF(C7="El registro no existe en la base de datos", "<<=", "") -> 
A9: Fecha: | C9: 2021-03-03
A11: N.º Comprobante: | C11: 15 | F11: N.º Cheque: | I11: 1014
A13: Alícuota Retención: | C13: =IFERROR(VLOOKUP(INDEX(Tabla1[#data], MATCH(I13, servicios, 0), 1), partidas!A:I, 4, FALSE()), 0) -> 0 | F13: Transacción: | I13: Reembolso de Caja Chica
A15: Valor Bruto: | C15: 8000 | F15: T/C: | I15: 34.9418
A17: Descripción:
A18: APERTURA DE CAJA CHICA MES DE MARZO PARA GASTOS PROYECTO BROOKE.

Sheet CashData
A1: FECHA | B1: DONANTE | C1: CLAVE_FONDO | D1: CLAVE_OPERACION | E1: RUBRO | F1: LINEA_GASTO | G1: DOCUMENTO | H1: NUMERO_DOC | I1: PROVEEDOR | J1: DESCRIPCION | K1: VALOR | L1: TRANSACCION

Sheet planilla
A3: COOPERATIVA DE AGROTURISMO RURAL BIOMETEPE R.L. | K3: Planilla: | L3: 202201 – 01
A4: ="PLANILLA DE SALARIOS - NOMINA " & RIGHT(L3, 2) -> PLANILLA DE SALARIOS - NOMINA 01 | K4: Fecha: | L4: 2022-01-17
A5: ="DEL " &UPPER(TEXT('01'!C9, "DD-MMM-YY")) &" AL "& UPPER(TEXT('01'!C10, "DD-MMM-YY")) -> DEL 01-OCT-23 AL 31-OCT-23
K7: ="Impreso el: "&TEXT(NOW(),"DD-MMM-YY")&" - "&TEXT(NOW(),"HH:MM:SS") -> Impreso el: 26-oct-23 - 20:31:52
A8: COD | B8: NOMBRE Y APELLIDOS | C8: CARGO | D8: SALARIO MENSUAL | E8: DEDUCCIONES | I8: NETO A RECIBIR | J8: AGUINALDO 8.333333% | K8: INDEMNIZACION 8.333333% | L8: INATEC 2% | M8: PATRONAL 21.50%
E9: INSS 7% | F9: ING. GRAB. | G9: IR | H9: TOT. DEDUCC.
A10: 2 | B10: =IF(A10<>"", VLOOKUP($A10, '02'!$A$2:$F$20, 4, 0), "") -> Priscila Castillo Fonseca | C10: =IF(A10<>"", VLOOKUP($A10, '02'!$A$2:$F$20, 5, 0), "") -> Asistente contable | D10: =IF(A10<>"", VLOOKUP($A10, '02'!$A$2:$H$20, 8, 0), 0) -> 17813.79 | E10: =ROUND(D10*7%, 2) -> 1246.97 | F10: =D10-E10 -> 16566.82 | G10: =ROUND(IF(F10*12<=100000, 0, IF(F10*12<=200000, (F10*12-100000)*0.15/12, IF(F10*12<=350000, ((F10*12-200000)*0.2+15000)/12, IF(F10*12<=500000, ((F10*12-350000)*0.25+45000)/12, ((F10*12-500000)*0.3+82500)/12)))), 2) -> 1235.02 | H10: =E10+G10 -> 2481.99 | I10: =D10-H10 -> 15331.8 | J10: =ROUND(D10/30*2.5, 2) -> 1484.48 | K10: =ROUND(D10/30*2.5, 2) -> 1484.48 | L10: =ROUND(D10*2%, 2) -> 356.28 | M10: =ROUND(D10*0.215, 2) -> 3829.96
A11: 3 | B11: =IF(A11<>"", VLOOKUP($A11, '02'!$A$2:$F$20, 4, 0), "") -> Ermenson Urtecho | C11: =IF(A11<>"", VLOOKUP($A11, '02'!$A$2:$F$20, 5, 0), "") -> Especialista en Trafico Ilegal, vida silvestre | D11: =IF(A11<>"", VLOOKUP($A11, '02'!$A$2:$H$20, 8, 0), 0) -> 16000.13 | E11: =ROUND(D11*7%, 2) -> 1120.01 | F11: =D11-E11 -> 14880.12 | G11: =ROUND(IF(F11*12<=100000, 0, IF(F11*12<=200000, (F11*12-100000)*0.15/12, IF(F11*12<=350000, ((F11*12-200000)*0.2+15000)/12, IF(F11*12<=500000, ((F11*12-350000)*0.25+45000)/12, ((F11*12-500000)*0.3+82500)/12)))), 2) -> 982.02 | H11: =E11+G11 -> 2102.03 | I11: =D11-H11 -> 13898.1 | J11: =ROUND(D11/30*2.5, 2) -> 1333.34 | K11: =ROUND(D11/30*2.5, 2) -> 1333.34 | L11: =ROUND(D11*2%, 2) -> 320 | M11: =ROUND(D11*0.215, 2) -> 3440.03
A12: 5 | B12: =IF(A12<>"", VLOOKUP($A12, '02'!$A$2:$F$20, 4, 0), "") -> Keyla Esperanza Mena Romero | C12: =IF(A12<>"", VLOOKUP($A12, '02'!$A$2:$F$20, 5, 0), "") -> Especialista en recursos naturales en gobernanza | D12: =IF(A12<>"", VLOOKUP($A12, '02'!$A$2:$H$20, 8, 0), 0) -> 30537.93 | E12: =ROUND(D12*7%, 2) -> 2137.66 | F12: =D12-E12 -> 28400.27 | G12: =ROUND(IF(F12*12<=100000, 0, IF(F12*12<=200000, (F12*12-100000)*0.15/12, IF(F12*12<=350000, ((F12*12-200000)*0.2+15000)/12, IF(F12*12<=500000, ((F12*12-350000)*0.25+45000)/12, ((F12*12-500000)*0.3+82500)/12)))), 2) -> 3596.72 | H12: =E12+G12 -> 5734.38 | I12: =D12-H12 -> 24803.55 | J12: =ROUND(D12/30*2.5, 2) -> 2544.83 | K12: =ROUND(D12/30*2.5, 2) -> 2544.83 | L12: =ROUND(D12*2%, 2) -> 610.76 | M12: =ROUND(D12*0.215, 2) -> 6565.65
A13: 9 | B13: =IF(A13<>"", VLOOKUP($A13, '02'!$A$2:$F$20, 4, 0), "") -> Anry Rossmery Rodríguez Valdivia | C13: =IF(A13<>"", VLOOKUP($A13, '02'!$A$2:$F$20, 5, 0), "") -> Técnico en Educación y Comunicación | D13: =IF(A13<>"", VLOOKUP($A13, '02'!$A$2:$H$20, 8, 0), 0) -> 12646.02 | E13: =ROUND(D13*7%, 2) -> 885.22 | F13: =D13-E13 -> 11760.8 | G13: =ROUND(IF(F13*12<=100000, 0, IF(F13*12<=200000, (F13*12-100000)*0.15/12, IF(F13*12<=350000, ((F13*12-200000)*0.2+15000)/12, IF(F13*12<=500000, ((F13*12-350000)*0.25+45000)/12, ((F13*12-500000)*0.3+82500)/12)))), 2) -> 514.12 | H13: =E13+G13 -> 1399.34 | I13: =D13-H13 -> 11246.68 | J13: =ROUND(D13/30*2.5, 2) -> 1053.84 | K13: =ROUND(D13/30*2.5, 2) -> 1053.84 | L13: =ROUND(D13*2%, 2) -> 252.92 | M13: =ROUND(D13*0.215, 2) -> 2718.89
B14: =IF(A14<>"", VLOOKUP($A14, '02'!$A$2:$F$20, 4, 0), "") ->  | C14: =IF(A14<>"", VLOOKUP($A14, '02'!$A$2:$F$20, 5, 0), "") ->  | D14: =IF(A14<>"", VLOOKUP($A14, '02'!$A$2:$H$20, 8, 0), 0) -> 0 | E14: =ROUND(D14*7%, 2) -> 0 | F14: =D14-E14 -> 0 | G14: =ROUND(IF(F14*12<=100000, 0, IF(F14*12<=200000, (F14*12-100000)*0.15/12, IF(F14*12<=350000, ((F14*12-200000)*0.2+15000)/12, IF(F14*12<=500000, ((F14*12-350000)*0.25+45000)/12, ((F14*12-500000)*0.3+82500)/12)))), 2) -> 0 | H14: =E14+G14 -> 0 | I14: =D14-H14 -> 0 | J14: =ROUND(D14/30*2.5, 2) -> 0 | K14: =ROUND(D14/30*2.5, 2) -> 0 | L14: =ROUND(D14*2%, 2) -> 0 | M14: =ROUND(D14*0.215, 2) -> 0
B15: =IF(A15<>"", VLOOKUP($A15, '02'!$A$2:$F$20, 4, 0), "") ->  | C15: =IF(A15<>"", VLOOKUP($A15, '02'!$A$2:$F$20, 5, 0), "") ->  | D15: =IF(A15<>"", VLOOKUP($A15, '02'!$A$2:$H$20, 8, 0), 0) -> 0 | E15: =ROUND(D15*7%, 2) -> 0 | F15: =D15-E15 -> 0 | G15: =ROUND(IF(F15*12<=100000, 0, IF(F15*12<=200000, (F15*12-100000)*0.15/12, IF(F15*12<=350000, ((F15*12-200000)*0.2+15000)/12, IF(F15*12<=500000, ((F15*12-350000)*0.25+45000)/12, ((F15*12-500000)*0.3+82500)/12)))), 2) -> 0 | H15: =E15+G15 -> 0 | I15: =D15-H15 -> 0 | J15: =ROUND(D15/30*2.5, 2) -> 0 | K15: =ROUND(D15/30*2.5, 2) -> 0 | L15: =ROUND(D15*2%, 2) -> 0 | M15: =ROUND(D15*0.215, 2) -> 0
A16: TOTALES | D16: =SUM(D10:D15) -> 76997.87 | E16: =SUM(E10:E15) -> 5389.86 | F16: =SUM(F10:F15) -> 71608.01 | G16: =SUM(G10:G15) -> 6327.88 | H16: =SUM(H10:H15) -> 11717.74 | I16: =SUM(I10:I15) -> 65280.13 | J16: =SUM(J10:J15) -> 6416.49 | K16: =SUM(K10:K15) -> 6416.49 | L16: =SUM(L10:L15) -> 1539.96 | M16: =SUM(M10:M15) -> 16554.53
B23: PARTIDA CONTABLE
B24: CUENTA | C24: DESCRIPCION | D24: DEBITO | E24: CREDITO
B25: 571-02-1-01 | C25: SUELDOS DE PERSONAL CONTRATADO M.N. | D25: =D16 -> 76997.87
B26: 571-02-1-01 | C26: AGUINALDOS M.N. | D26: =J16 -> 6416.49
B27: 571-10-1-01 | C27: INDEMNIZACIONES M.N. | D27: =K16 -> 6416.49
B28: 571-15-1-01 | C28: SEGURO SOCIAL APORTE PATRONAL M.N. | D28: =M16 -> 16554.53 | J28: APLICACIÓN DE FONDOS
B29: 571-16-1-01 | C29: APORTES A INATEC M.N. | D29: =L16 -> 1539.96 | J29: FONDO | K29: RUBRO | L29: VALOR
B30: 251-04-1-01 | C30: DECIMO TERCER MES POR PAGAR M.N. | E30: =J16 -> 6416.49
B31: 251-05-1-01 | C31: APORTE INSS EMPLEADOR M.N. | E31: =M16 -> 16554.53
B32: 251-06-1-01 | C32: APORTE INATEC EMPLEADOR M.N. | E32: =L16 -> 1539.96
B33: 252-01-1-01 | C33: IMPUESTOS SOBRE LA RENTA EMPLEADOS MN | E33: =G16 -> 6327.88 | J33: TOTALES | L33: =SUM(L30:L31) -> 0
B34: 252-04-1-01 | C34: APORTE LABORAL INSS MN | E34: =E16 -> 5389.86
B35: 261-01-1-01 | C35: PROVISIONES P/INDEMNIZACIONES LABORALES | E35: =K16 -> 6416.49
B36: 112-01-1-01 | C36: LAFISE – CTA. NIO 106007653 | E36: =I16 -> 65280.13
C37: TOTALES | D37: =SUM(D25:D36) -> 107925.34 | E37: =SUM(E25:E36) -> 107925.34
B46: =UPPER(IF(B47<>"", VLOOKUP(B47, '01'!B3:C5, 2, 0), "")) -> PRISCILA CASTILLO FONSECA | D46: =UPPER(IF(D47<> "", VLOOKUP(D47, '01'!B3:C5, 2, 0), "")) -> EMERSON URTECHO | I46: =UPPER(IF(I47<>"",VLOOKUP(I47,'01'!B3:C5,2,0),"")) -> KEYLA ESPERANZA MENA ROMERO
B47: Elaborado por: | D47: Revisado por: | I47: Autorizado por:

Sheet recibos
A1: BIOMETEPE R.L. | D1: BIOMETEPE R.L.
A2: Comprobante de pago de salario | D2: Comprobante de pago de salario
A3: DEL 01-DIC-19 AL 31-DIC-19 | D3: =A3 -> DEL 01-DIC-19 AL 31-DIC-19
A4: =planilla!B10 -> Priscila Castillo Fonseca | D4: =planilla!B11 -> Ermenson Urtecho
A5: DETALLE DE INGRESOS | D5: DETALLE DE INGRESOS
A6: Salarios | B6: =VLOOKUP(A4, planilla!$B$10:$I$15, 3, 0) -> 17813.79 | D6: Salarios | E6: =VLOOKUP(D4, planilla!$B$10:$I$15, 3, FALSE()) -> 16000.13
A7: Ingresos Totales | B7: =B6 -> 17813.79 | D7: Ingresos Totales | E7: =E6 -> 16000.13
A8: MENOS: DEDUCCIONES | D8: MENOS: DEDUCCIONES
A9: Inss Laboral | B9: =VLOOKUP(A4, planilla!$B$10:$I$15, 4, FALSE()) -> 1246.97 | D9: Inss Laboral | E9: =VLOOKUP(D4, planilla!$B$10:$I$15, 4, FALSE()) -> 1120.01
A10: IR | B10: =VLOOKUP(A4, planilla!$B$10:$I$15, 6, FALSE()) -> 1235.02 | D10: IR | E10: =VLOOKUP(D4, planilla!$B$10:$I$15, 6, FALSE()) -> 982.02
A11: Deducciones Totales | B11: =SUM(B9:B10) -> 2481.99 | D11: Deducciones Totales | E11: =SUM(E9:E10) -> 2102.03
A12: Neto a Recibir | B12: =B7-B11 -> 15331.8 | D12: Neto a Recibir | E12: =E7-E11 -> 13898.1
A16: Entrega Conforme: | D16: Entrega Conforme:
A20: Recibe Conforme: | D20: Recibe Conforme:
A26: =A1 -> BIOMETEPE R.L. | D26: =D1 -> BIOMETEPE R.L.
A27: Comprobante de pago de salario | D27: Comprobante de pago de salario
A28: =A3 -> DEL 01-DIC-19 AL 31-DIC-19 | D28: =D3 -> DEL 01-DIC-19 AL 31-DIC-19
A29: =A4 -> Priscila Castillo Fonseca | D29: =D4 -> Ermenson Urtecho
A30: DETALLE DE INGRESOS | D30: DETALLE DE INGRESOS
A31: Salarios | B31: =B6 -> 17813.79 | D31: Salarios | E31: =E6 -> 16000.13
A32: Ingresos Totales | B32: =B31 -> 17813.79 | D32: Ingresos Totales | E32: =E31 -> 16000.13
A33: MENOS: DEDUCCIONES | D33: MENOS: DEDUCCIONES
A34: Inss Laboral | B34: =B9 -> 1246.97 | D34: Inss Laboral | E34: =E9 -> 1120.01
A35: IR | B35: =B10 -> 1235.02 | D35: IR | E35: =E10 -> 982.02
A36: Deducciones Totales | B36: =SUM(B34:B35) -> 2481.99 | D36: Deducciones Totales | E36: =SUM(E34:E35) -> 2102.03
A37: Neto a Recibir | B37: =B32-B36 -> 15331.8 | D37: Neto a Recibir | E37: =E32-E36 -> 13898.1
A41: Entrega Conforme: | D41: Entrega Conforme:
A45: Recibe Conforme: | D45: Recibe Conforme:
A52: BIOMETEPE R.L. | D52: BIOMETEPE R.L.
A53: Comprobante de pago de salario | D53: Comprobante de pago de salario
A54: DEL 01-DIC-19 AL 31-DIC-19 | D54: =A54 -> DEL 01-DIC-19 AL 31-DIC-19
A55: =planilla!B12 -> Keyla Esperanza Mena Romero | D55: =planilla!B13 -> Anry Rossmery Rodríguez Valdivia
A56: DETALLE DE INGRESOS | D56: DETALLE DE INGRESOS
A57: Salarios | B57: =VLOOKUP(A55, planilla!$B$10:$I$15, 3, FALSE()) -> 30537.93 | D57: Salarios | E57: =VLOOKUP(D55, planilla!$B$10:$I$15, 3, FALSE()) -> 12646.02
A58: Ingresos Totales | B58: =B57 -> 30537.93 | D58: Ingresos Totales | E58: =E57 -> 12646.02
A59: MENOS: DEDUCCIONES | D59: MENOS: DEDUCCIONES
A60: Inss Laboral | B60: =VLOOKUP(A55, planilla!$B$10:$I$15, 4, FALSE()) -> 2137.66 | D60: Inss Laboral | E60: =VLOOKUP(D55, planilla!$B$10:$I$15, 4, FALSE()) -> 885.22
A61: IR | B61: =VLOOKUP(A55, planilla!$B$10:$I$15, 6, FALSE()) -> 3596.72 | D61: IR | E61: =VLOOKUP(D55, planilla!$B$10:$I$15, 6, FALSE()) -> 514.12
A62: Deducciones Totales | B62: =SUM(B60:B61) -> 5734.38 | D62: Deducciones Totales | E62: =SUM(E60:E61) -> 1399.34
A63: Neto a Recibir | B63: =B58-B62 -> 24803.55 | D63: Neto a Recibir | E63: =E58-E62 -> 11246.68
A67: Entrega Conforme: | D67: Entrega Conforme:
A71: Recibe Conforme: | D71: Recibe Conforme:
A77: =A52 -> BIOMETEPE R.L. | D77: =D52 -> BIOMETEPE R.L.
A78: Comprobante de pago de salario | D78: Comprobante de pago de salario
A79: =A54 -> DEL 01-DIC-19 AL 31-DIC-19 | D79: =D54 -> DEL 01-DIC-19 AL 31-DIC-19
A80: =A55 -> Keyla Esperanza Mena Romero | D80: =D55 -> Anry Rossmery Rodríguez Valdivia
A81: DETALLE DE INGRESOS | D81: DETALLE DE INGRESOS
A82: Salarios | B82: =B57 -> 30537.93 | D82: Salarios | E82: =E57 -> 12646.02
A83: Ingresos Totales | B83: =B82 -> 30537.93 | D83: Ingresos Totales | E83: =E82 -> 12646.02
A84: MENOS: DEDUCCIONES | D84: MENOS: DEDUCCIONES
A85: Inss Laboral | B85: =B60 -> 2137.66 | D85: Inss Laboral | E85: =E60 -> 885.22
A86: IR | B86: =B61 -> 3596.72 | D86: IR | E86: =E61 -> 514.12
A87: Deducciones Totales | B87: =SUM(B85:B86) -> 5734.38 | D87: Deducciones Totales | E87: =SUM(E85:E86) -> 1399.34
A88: Neto a Recibir | B88: =B83-B87 -> 24803.55 | D88: Neto a Recibir | E88: =E83-E87 -> 11246.68
A92: Entrega Conforme: | D92: Entrega Conforme:
A96: Recibe Conforme: | D96: Recibe Conforme:
A102: BIOMETEPE R.L. | D102: BIOMETEPE R.L.
A103: Comprobante de pago de salario | D103: Comprobante de pago de salario
A104: DEL 01-DIC-19 AL 31-DIC-19 | D104: =A104 -> DEL 01-DIC-19 AL 31-DIC-19
A105: =planilla!B14 ->  | D105: =planilla!B15 -> 
A106: DETALLE DE INGRESOS | D106: DETALLE DE INGRESOS
A107: Salarios | B107: =VLOOKUP(A105, planilla!$B$10:$I$15, 3, FALSE()) -> 0 | D107: Salarios | E107: =VLOOKUP(D105, planilla!$B$10:$I$15, 3, FALSE()) -> 0
A108: Ingresos Totales | B108: =B107 -> 0 | D108: Ingresos Totales | E108: =E107 -> 0
A109: MENOS: DEDUCCIONES | D109: MENOS: DEDUCCIONES
A110: Inss Laboral | B110: =VLOOKUP(A105, planilla!$B$10:$I$15, 4, FALSE()) -> 0 | D110: Inss Laboral | E110: =VLOOKUP(D105, planilla!$B$10:$I$15, 4, FALSE()) -> 0
A111: IR | B111: =VLOOKUP(A105, planilla!$B$10:$I$15, 6, FALSE()) -> 0 | D111: IR | E111: =VLOOKUP(D105, planilla!$B$10:$I$15, 6, FALSE()) -> 0
A112: Deducciones Totales | B112: =SUM(B110:B111) -> 0 | D112: Deducciones Totales | E112: =SUM(E110:E111) -> 0
A113: Neto a Recibir | B113: =B108-B112 -> 0 | D113: Neto a Recibir | E113: =E108-E112 -> 0
A117: Entrega Conforme: | D117: Entrega Conforme:
A121: Recibe Conforme: | D121: Recibe Conforme:
A127: =A102 -> BIOMETEPE R.L. | D127: =D102 -> BIOMETEPE R.L.
A128: Comprobante de pago de salario | D128: Comprobante de pago de salario
A129: =A104 -> DEL 01-DIC-19 AL 31-DIC-19 | D129: =D104 -> DEL 01-DIC-19 AL 31-DIC-19
A130: =A105 ->  | D130: =D105 -> 
A131: DETALLE DE INGRESOS | D131: DETALLE DE INGRESOS
A132: Salarios | B132: =B107 -> 0 | D132: Salarios | E132: =E107 -> 0
A133: Ingresos Totales | B133: =B132 -> 0 | D133: Ingresos Totales | E133: =E132 -> 0
A134: MENOS: DEDUCCIONES | D134: MENOS: DEDUCCIONES
A135: Inss Laboral | B135: =B110 -> 0 | D135: Inss Laboral | E135: =E110 -> 0
A136: IR | B136: =B111 -> 0 | D136: IR | E136: =E111 -> 0
A137: Deducciones Totales | B137: =SUM(B135:B136) -> 0 | D137: Deducciones Totales | E137: =SUM(E135:E136) -> 0
A138: Neto a Recibir | B138: =B133-B137 -> 0 | D138: Neto a Recibir | E138: =E133-E137 -> 0
A142: Entrega Conforme: | D142: Entrega Conforme:
A146: Recibe Conforme: | D146: Recibe Conforme:

Sheet comprobante
H6: Reembolso | I6: =IF(CE!C3="Reembolso", "X", "") -> 
H7: Pago | I7: =IF(CE!C3="Pago", "X", "") -> X
H8: Anticipo | I8: =IF(CE!C3="Anticipo", "X", "") -> 
A9: COMPROBANTE DE EGRESO (CORDOBAS)
B26: A NOMBRE DE: | C26: =IFERROR(UPPER(CE!C7), "El registro no existe en la base de datos") -> PRISCILA CASTILLO FONSECA
B27: DIRECCION: | C27: =IFERROR(IF(CE!C7<>"", VLOOKUP(CE!C5, proveedores!A2:D192, 4, 0), ""), "El registro no existe en la base de datos") -> Moyogalpa. Del colegio Israel 1/2 cuadra al este.
B28: CED: | C28: =IF(CE!C5<>"", UPPER(CE!C5), "") -> 569-030796-0000B
B29: DETALLES DEL PAGO
B31: FECHA | C31: No. COMP. | E31: No. CHEQUE | F31: BANCO | G31: C$ | H31: T/C | I31: FONDO
B32: =IF(CE!C9<>"", CE!C9, "") -> 2021-03-03 | C32: =IF(CE!C11<>"", CE!C11, "") -> 15 | E32: =IF(CE!I11<>"", CE!I11, "") -> 1014 | F32: LAFISE | G32: 8000 | H32: =IF(CE!I15<>"", CE!I15, 0) -> 34.9418 | I32: CAJA CHICA
B34: CONCEPTO:
B35: =IF(CE!I13<>"", CE!I13, "") -> Reembolso de Caja Chica
B36: =UPPER(IF(CE!A18<>"", CE!A18, "")) -> APERTURA DE CAJA CHICA MES DE MARZO PARA GASTOS PROYECTO BROOKE.
C38: DESCRIPCION | H38: DEBE | I38: HABER
B39: 11100000 | C39: =IFERROR(IF(B39<>"", VLOOKUP(B39,PlanContable!$A$2:$B$210, 2, 0), ""), "") -> EFECTIVO EN CAJA | H39: 8000
B40: 11101101 | C40: =IFERROR(IF(B40<>"", VLOOKUP(B40,PlanContable!$A$2:$B$512, 2, 0), ""), "") -> CAJA CHICA MN | G40: 8000
B41: * | C41: =IFERROR(IF(B41<>"", VLOOKUP(B41,PlanContable!$A$2:$B$512, 2, 0), ""), "") -> ACTIVOS
B42: 11200000 | C42: =IFERROR(IF(B42<>"", VLOOKUP(B42,PlanContable!$A$2:$B$512, 2, 0), ""), "") -> DEPOSITOS EN COOPERATIVAS, BANCOS Y OTRAS INSTITUCIONES | I42: 8000
B43: 11201102 | C43: =IFERROR(IF(B43<>"", VLOOKUP(B43,PlanContable!$A$2:$B$512, 2, 0), ""), "") -> LAFISE – CTA. NIO 106009799 | G43: 8000
C44: =IFERROR(IF(B44<>"", VLOOKUP(B44,PlanContable!$A$2:$B$512, 2, 0), ""), "") -> 
C45: =IFERROR(IF(B45<>"", VLOOKUP(B45,PlanContable!$A$2:$B$512, 2, 0), ""), "") -> 
C46: =IFERROR(IF(B46<>"", VLOOKUP(B46,PlanContable!$A$2:$B$512, 2, 0), ""), "") -> 
C47: =IFERROR(IF(B47<>"", VLOOKUP(B47,PlanContable!$A$2:$B$512, 2, 0), ""), "") -> 
C48: =IFERROR(IF(B48<>"", VLOOKUP(B48,PlanContable!$A$2:$B$512, 2, 0), ""), "") -> 
C49: =IFERROR(IF(B49<>"", VLOOKUP(B49,PlanContable!$A$2:$B$512, 2, 0), ""), "") -> 
C50: =IFERROR(IF(B50<>"", VLOOKUP(B50,PlanContable!$A$2:$B$512, 2, 0), ""), "") -> 
C51: =IFERROR(IF(B51<>"", VLOOKUP(B51,PlanContable!$A$2:$B$512, 2, 0), ""), "") -> 
C52: =IFERROR(IF(B52<>"", VLOOKUP(B52,PlanContable!$A$2:$B$512, 2, 0), ""), "") -> 
C53: Total | H53: =SUM(H39:H52) -> 8000 | I53: =SUM(I39:I52) -> 8000
A56: Elaborado por:_________________ | E56: Autorizado por:_________________________
A59: Recibido por:_________________ Firma:_______________ Cédula No.______________________ Fecha:________________
